[Event "***Titled Tuesday 3|2 Blitz"]
[Site "Chess.com"]
[Date "2017.02.07"]
[Round "1"]
[White "Rating-Schmating"]
[Black "maciek_92"]
[Result "0-1"]
[WhiteElo "2280"]
[BlackElo "2568"]
[TimeControl "180+2"]
[EndTime "13:09:19 PST"]
[Termination "maciek_92 won by resignation"]

1. e4 {[%clk 0:03:01.9]} 1... c5 {[%clk 0:03:00.3]} 2. Nf3 {[%clk 0:03:02]} 2...
Nc6 {[%clk 0:02:59.8]} 3. d4 {[%clk 0:03:02.4]} 3... cxd4 {[%clk 0:03:00.9]} 4.
Nxd4 {[%clk 0:03:03.4]} 4... e6 {[%clk 0:03:02.5]} 5. c4 {[%clk 0:03:04.2]} 5...
Nf6 {[%clk 0:03:02.9]} 6. Nc3 {[%clk 0:03:05.5]} 6... Bb4 {[%clk 0:03:03.8]} 7.
Nxc6 {[%clk 0:03:06.8]} 7... bxc6 {[%clk 0:03:04.2]} 8. Bd3 {[%clk 0:03:07.5]}
8... e5 {[%clk 0:02:59.7]} 9. O-O {[%clk 0:03:06.7]} 9... O-O {[%clk 0:03:01.3]}
10. Qc2 {[%clk 0:03:00.6]} 10... Bc5 {[%clk 0:02:59.7]} 11. a3 {[%clk
0:02:59.1]} 11... a5 {[%clk 0:02:58.6]} 12. Nd1 {[%clk 0:02:57.9]} 12... d6
{[%clk 0:02:54.4]} 13. Be3 {[%clk 0:02:57.1]} 13... Be6 {[%clk 0:02:40.5]} 14.
Bxc5 {[%clk 0:02:46.5]} 14... dxc5 {[%clk 0:02:42.4]} 15. Nc3 {[%clk 0:02:47.8]}
15... Qe7 {[%clk 0:02:38.5]} 16. Rfd1 {[%clk 0:02:47]} 16... Rfd8 {[%clk
0:02:39.5]} 17. f3 {[%clk 0:02:48.3]} 17... Nh5 {[%clk 0:02:34]} 18. Ne2 {[%clk
0:02:47.9]} 18... Qg5 {[%clk 0:02:28.7]} 19. Qc1 {[%clk 0:02:41.1]} 19... Qxc1
{[%clk 0:02:27.1]} 20. Raxc1 {[%clk 0:02:43]} 20... Rab8 {[%clk 0:02:27.3]} 21.
Rc2 {[%clk 0:02:42.2]} 21... Kf8 {[%clk 0:02:25.3]} 22. g3 {[%clk 0:02:41.6]}
22... Ke7 {[%clk 0:02:21.7]} 23. Kf2 {[%clk 0:02:43]} 23... Nf6 {[%clk
0:02:22.2]} 24. Ke3 {[%clk 0:02:43.9]} 24... Rd6 {[%clk 0:02:13.6]} 25. Nc3
{[%clk 0:02:39.9]} 25... Nd7 {[%clk 0:01:51.3]} 26. Rcd2 {[%clk 0:02:39.1]}
26... Rd4 {[%clk 0:01:50.9]} 27. Ne2 {[%clk 0:02:25.4]} 27... Rd6 {[%clk
0:01:49.1]} 28. f4 {[%clk 0:02:14.7]} 28... f6 {[%clk 0:01:47.6]} 29. Nc3 {[%clk
0:02:13.3]} 29... Rb3 {[%clk 0:01:42.6]} 30. Be2 {[%clk 0:02:05.7]} 30... Rd4
{[%clk 0:01:42.1]} 31. Kf2 {[%clk 0:01:44.5]} 31... Nb6 {[%clk 0:01:41.4]} 32.
Rc2 {[%clk 0:01:30.5]} 32... Bxc4 {[%clk 0:01:31.6]} 33. Rxd4 {[%clk 0:01:23.5]}
33... cxd4 {[%clk 0:01:19]} 34. Bxc4 {[%clk 0:01:16.6]} 34... Nxc4 {[%clk
0:01:20.9]} 35. Na4 {[%clk 0:01:17.9]} 35... Nd6 {[%clk 0:01:20.2]} 36. Rxc6
{[%clk 0:01:17.8]} 36... Nxe4+ {[%clk 0:01:21.3]} 37. Kg2 {[%clk 0:01:16.8]}
37... d3 {[%clk 0:01:19.8]} 38. Rc1 {[%clk 0:00:53.8]} 38... Kd6 {[%clk
0:01:07.5]} 39. Kf1 {[%clk 0:00:49.1]} 39... d2 {[%clk 0:01:01.5]} 40. Rd1
{[%clk 0:00:49.2]} 40... exf4 {[%clk 0:00:59.1]} 41. gxf4 {[%clk 0:00:48.1]}
41... Rf3+ {[%clk 0:01:00.6]} 42. Ke2 {[%clk 0:00:49.5]} 42... Rxf4 {[%clk
0:01:01.5]} 43. Nc3 {[%clk 0:00:49]} 43... Kc5 {[%clk 0:00:58.6]} 44. Ke3 {[%clk
0:00:40]} 44... Nxc3 {[%clk 0:00:59.6]} 45. bxc3 {[%clk 0:00:39.5]} 45... Ra4
{[%clk 0:00:58.7]} 46. Kxd2 {[%clk 0:00:36.3]} 46... Rxa3 {[%clk 0:00:59.9]} 47.
Rg1 {[%clk 0:00:36.3]} 47... g6 {[%clk 0:00:59.6]} 48. Kd3 {[%clk 0:00:31.2]}
48... Ra2 {[%clk 0:00:58.8]} 49. Rf1 {[%clk 0:00:27.2]} 49... f5 {[%clk
0:00:58.4]} 50. Rh1 {[%clk 0:00:21.1]} 50... a4 {[%clk 0:00:59.4]} 51. h4 {[%clk
0:00:22]} 51... a3 {[%clk 0:00:59.4]} 52. h5 {[%clk 0:00:23.4]} 52... Rg2 {[%clk
0:01:00.4]} 53. hxg6 {[%clk 0:00:24.6]} 53... hxg6 {[%clk 0:01:02]} 54. Ra1
{[%clk 0:00:26.1]} 54... a2 {[%clk 0:01:03.3]} 55. Ke3 {[%clk 0:00:26.5]} 55...
g5 {[%clk 0:01:03.6]} 56. Kf3 {[%clk 0:00:27.2]} 56... Rc2 {[%clk 0:01:04.6]}
57. Ke3 {[%clk 0:00:28.6]} 57... Rxc3+ {[%clk 0:01:06]} 58. Kd2 {[%clk
0:00:30.2]} 58... Ra3 {[%clk 0:01:07.6]} 59. Kc2 {[%clk 0:00:31.7]} 59... g4
{[%clk 0:01:07.9]} 60. Kb2 {[%clk 0:00:33.3]} 60... Ra5 {[%clk 0:01:09.1]} 61.
Rxa2 {[%clk 0:00:33.2]} 61... Rxa2+ {[%clk 0:01:09.6]} 62. Kxa2 {[%clk
0:00:35.1]} 62... g3 {[%clk 0:01:10.9]} 0-1

[Event "***Titled Tuesday 3|2 Blitz"]
[Site "Chess.com"]
[Date "2017.02.07"]
[Round "1"]
[White "dretch"]
[Black "pedromartinez91"]
[Result "0-1"]
[WhiteElo "2536"]
[BlackElo "2290"]
[TimeControl "180+2"]
[EndTime "13:09:26 PST"]
[Termination "pedromartinez91 won by checkmate"]

1. d4 {[%clk 0:03:02]} 1... d5 {[%clk 0:03:00.8]} 2. c4 {[%clk 0:03:03.1]} 2...
Nc6 {[%clk 0:03:01.8]} 3. cxd5 {[%clk 0:02:56.3]} 3... Qxd5 {[%clk 0:03:01.2]}
4. e3 {[%clk 0:02:57.5]} 4... e5 {[%clk 0:03:01.9]} 5. Nc3 {[%clk 0:02:59.4]}
5... Bb4 {[%clk 0:03:02]} 6. Bd2 {[%clk 0:03:01.1]} 6... Bxc3 {[%clk 0:03:01.1]}
7. Bxc3 {[%clk 0:03:03]} 7... exd4 {[%clk 0:03:01.8]} 8. Ne2 {[%clk 0:03:04.6]}
8... Nf6 {[%clk 0:03:02.4]} 9. Nxd4 {[%clk 0:03:05.7]} 9... O-O {[%clk
0:02:47.3]} 10. Qb3 {[%clk 0:03:06.2]} 10... Nxd4 {[%clk 0:02:47.3]} 11. Bxd4
{[%clk 0:03:06.6]} 11... Qd6 {[%clk 0:02:42.7]} 12. Rc1 {[%clk 0:03:01.6]} 12...
b6 {[%clk 0:02:25.2]} 13. Bxf6 {[%clk 0:02:30.2]} 13... Qxf6 {[%clk 0:02:18.2]}
14. Rxc7 {[%clk 0:02:30.7]} 14... Be6 {[%clk 0:02:16.4]} 15. Qc3 {[%clk
0:01:49.9]} 15... Qg5 {[%clk 0:01:44]} 16. h4 {[%clk 0:01:41]} 16... Qd5 {[%clk
0:01:44.4]} 17. Ba6 {[%clk 0:01:13]} 17... Qxg2 {[%clk 0:01:33.3]} 18. Bb7
{[%clk 0:01:14]} 18... Bd5 {[%clk 0:01:30.4]} 19. Bxd5 {[%clk 0:01:14]} 19...
Qxd5 {[%clk 0:01:30.7]} 20. Rg1 {[%clk 0:01:15.6]} 20... g6 {[%clk 0:01:27.5]}
21. Qc4 {[%clk 0:01:06.7]} 21... Qa5+ {[%clk 0:01:22.4]} 22. b4 {[%clk
0:01:04.5]} 22... Qe5 {[%clk 0:01:11.8]} 23. Rg5 {[%clk 0:00:47.5]} 23... Qa1+
{[%clk 0:01:03.6]} 24. Ke2 {[%clk 0:00:48.7]} 24... Rad8 {[%clk 0:01:04.2]} 25.
Rd5 {[%clk 0:00:45.3]} 25... Qf6 {[%clk 0:00:50.5]} 26. h5 {[%clk 0:00:38.1]}
26... Rxd5 {[%clk 0:00:47]} 27. Qxd5 {[%clk 0:00:40]} 27... Rd8 {[%clk
0:00:38.1]} 28. Qc4 {[%clk 0:00:34.1]} 28... a5 {[%clk 0:00:22.1]} 29. bxa5
{[%clk 0:00:30.4]} 29... bxa5 {[%clk 0:00:22.7]} 30. h6 {[%clk 0:00:28.6]} 30...
Rf8 {[%clk 0:00:14.7]} 31. f4 {[%clk 0:00:21.7]} 31... Qh4 {[%clk 0:00:14.6]}
32. Ra7 {[%clk 0:00:14]} 32... Qh2+ {[%clk 0:00:14.3]} 33. Kd3 {[%clk
0:00:14.3]} 33... Rd8+ {[%clk 0:00:14.1]} 34. Ke4 {[%clk 0:00:12.5]} 34... Qg2+
{[%clk 0:00:13.4]} 35. Ke5 {[%clk 0:00:13.6]} 35... Qb2+ {[%clk 0:00:07.8]} 36.
Ke4 {[%clk 0:00:12.2]} 36... Qg2+ {[%clk 0:00:08.5]} 37. Ke5 {[%clk 0:00:12.7]}
37... Re8+ {[%clk 0:00:07.5]} 38. Kf6 {[%clk 0:00:11.2]} 38... Qb2+ {[%clk
0:00:07.9]} 39. Qd4 {[%clk 0:00:11.4]} 39... Re6+ {[%clk 0:00:08.5]} 40. Kg5
{[%clk 0:00:12.9]} 40... Qg2+ {[%clk 0:00:09.2]} 41. Kh4 {[%clk 0:00:13.7]}
41... g5+ {[%clk 0:00:10.4]} 42. Kh5 {[%clk 0:00:09.2]} 42... Qh3+ {[%clk
0:00:10.7]} 43. Kxg5 {[%clk 0:00:10.4]} 43... Rg6# {[%clk 0:00:11.6]} 0-1

[Event "***Titled Tuesday 3|2 Blitz"]
[Site "Chess.com"]
[Date "2017.02.07"]
[Round "1"]
[White "Genghis_K"]
[Black "ArnaudovP"]
[Result "1/2-1/2"]
[WhiteElo "2692"]
[BlackElo "2394"]
[TimeControl "180+2"]
[EndTime "13:09:28 PST"]
[Termination "Game drawn by repetition"]

1. e4 {[%clk 0:03:00.2]} 1... e5 {[%clk 0:02:56.4]} 2. Nf3 {[%clk 0:03:00.3]}
2... Nc6 {[%clk 0:02:56.7]} 3. Bc4 {[%clk 0:03:01.7]} 3... Bc5 {[%clk 0:02:56]}
4. c3 {[%clk 0:03:01.3]} 4... Nf6 {[%clk 0:02:55.8]} 5. d3 {[%clk 0:03:02.7]}
5... O-O {[%clk 0:02:55.4]} 6. O-O {[%clk 0:03:02.5]} 6... d5 {[%clk 0:02:55.5]}
7. exd5 {[%clk 0:03:04.4]} 7... Nxd5 {[%clk 0:02:56]} 8. a4 {[%clk 0:03:06]}
8... a5 {[%clk 0:02:50.6]} 9. Nbd2 {[%clk 0:03:06.7]} 9... Bg4 {[%clk
0:02:50.1]} 10. Re1 {[%clk 0:03:00.9]} 10... Nb6 {[%clk 0:02:42.8]} 11. Bb5
{[%clk 0:02:48.5]} 11... Ne7 {[%clk 0:02:42.5]} 12. Rxe5 {[%clk 0:02:38.2]}
12... Bd6 {[%clk 0:02:41.6]} 13. Rg5 {[%clk 0:02:30.5]} 13... Bxf3 {[%clk
0:02:38.3]} 14. Qxf3 {[%clk 0:02:30.1]} 14... Ng6 {[%clk 0:02:34.5]} 15. Ne4
{[%clk 0:02:08.9]} 15... c6 {[%clk 0:02:26.6]} 16. Nxd6 {[%clk 0:01:42.8]} 16...
Qxd6 {[%clk 0:02:25.4]} 17. Bc4 {[%clk 0:01:43]} 17... Ne5 {[%clk 0:02:18.2]}
18. Qg3 {[%clk 0:00:58.6]} 18... Nbxc4 {[%clk 0:02:17.2]} 19. Bf4 {[%clk
0:00:44.4]} 19... Qxd3 {[%clk 0:02:02.3]} 20. Rxe5 {[%clk 0:00:19.3]} 20... Nxe5
{[%clk 0:01:58.7]} 21. Bxe5 {[%clk 0:00:20.1]} 21... Qxg3 {[%clk 0:01:59.1]} 22.
hxg3 {[%clk 0:00:21.3]} 22... Rfe8 {[%clk 0:01:58.6]} 23. Bd4 {[%clk 0:00:22.8]}
23... Rad8 {[%clk 0:01:57.3]} 24. Be3 {[%clk 0:00:22.9]} 24... Rd5 {[%clk
0:01:56.7]} 25. Rb1 {[%clk 0:00:23.3]} 25... f6 {[%clk 0:01:56.8]} 26. b4 {[%clk
0:00:24.1]} 26... axb4 {[%clk 0:01:57.5]} 27. cxb4 {[%clk 0:00:26]} 27... Red8
{[%clk 0:01:57.1]} 28. Rb2 {[%clk 0:00:23.7]} 28... Rd1+ {[%clk 0:01:56.1]} 29.
Kh2 {[%clk 0:00:24.7]} 29... R8d5 {[%clk 0:01:56.7]} 30. g4 {[%clk 0:00:25.5]}
30... h5 {[%clk 0:01:56.9]} 31. gxh5 {[%clk 0:00:24.1]} 31... Rxh5+ {[%clk
0:01:56.8]} 32. Kg3 {[%clk 0:00:25.7]} 32... Rhh1 {[%clk 0:01:57.5]} 33. Bc5
{[%clk 0:00:24.5]} 33... Rc1 {[%clk 0:01:56.3]} 34. a5 {[%clk 0:00:24.6]} 34...
Rhd1 {[%clk 0:01:56.5]} 35. Re2 {[%clk 0:00:25.4]} 35... Rd7 {[%clk 0:01:54.8]}
36. Re8+ {[%clk 0:00:25.7]} 36... Kf7 {[%clk 0:01:55.1]} 37. Rf8+ {[%clk
0:00:27.2]} 37... Kg6 {[%clk 0:01:55.8]} 38. Re8 {[%clk 0:00:28.8]} 38... Rd2
{[%clk 0:01:55.5]} 39. Re7 {[%clk 0:00:26.4]} 39... Rc3+ {[%clk 0:01:55.6]} 40.
Kh2 {[%clk 0:00:25.7]} 40... Rxc5 {[%clk 0:01:51.7]} 41. bxc5 {[%clk 0:00:26.4]}
41... Ra2 {[%clk 0:01:51.2]} 42. Rxb7 {[%clk 0:00:20.6]} 42... Rxa5 {[%clk
0:01:51.6]} 43. Rc7 {[%clk 0:00:22.2]} 43... Rxc5 {[%clk 0:01:51.9]} 44. Kg3
{[%clk 0:00:23.9]} 44... Rc3+ {[%clk 0:01:51.7]} 45. Kf4 {[%clk 0:00:24.8]}
45... c5 {[%clk 0:01:49.2]} 46. g4 {[%clk 0:00:24.8]} 46... Rc2 {[%clk
0:01:49.7]} 47. f3 {[%clk 0:00:25.5]} 47... Rc1 {[%clk 0:01:50.1]} 48. Kg3
{[%clk 0:00:25.4]} 48... c4 {[%clk 0:01:50.4]} 49. Kf4 {[%clk 0:00:26.6]} 49...
c3 {[%clk 0:01:51]} 50. Kg3 {[%clk 0:00:27.6]} 50... Kh7 {[%clk 0:01:46.1]} 51.
Rc8 {[%clk 0:00:25.4]} 51... g5 {[%clk 0:01:44.7]} 52. Rc7+ {[%clk 0:00:26.1]}
52... Kg8 {[%clk 0:01:45.6]} 53. Kf2 {[%clk 0:00:23.4]} 53... Kf8 {[%clk
0:01:42.2]} 54. Ke3 {[%clk 0:00:19.6]} 54... Ke8 {[%clk 0:01:38.2]} 55. Kd3
{[%clk 0:00:18.6]} 55... Rf1 {[%clk 0:01:35.7]} 56. Ke2 {[%clk 0:00:17.2]} 56...
Rc1 {[%clk 0:01:35.6]} 57. Kd3 {[%clk 0:00:18.7]} 57... Rd1+ {[%clk 0:01:26]}
58. Ke3 {[%clk 0:00:16.4]} 58... Re1+ {[%clk 0:01:22.2]} 59. Kd3 {[%clk
0:00:16]} 59... Rf1 {[%clk 0:01:22.9]} 60. Ke2 {[%clk 0:00:15.3]} 60... Rc1
{[%clk 0:01:20.7]} 61. Kd3 {[%clk 0:00:16.4]} 1/2-1/2

[Event "***Titled Tuesday 3|2 Blitz"]
[Site "Chess.com"]
[Date "2017.02.07"]
[Round "1"]
[White "AkshatChandra"]
[Black "MasterLeif"]
[Result "1-0"]
[WhiteElo "2633"]
[BlackElo "2343"]
[TimeControl "180+2"]
[EndTime "13:09:44 PST"]
[Termination "AkshatChandra won by checkmate"]

1. e4 {[%clk 0:02:51.7]} 1... e5 {[%clk 0:02:57.8]} 2. Nf3 {[%clk 0:02:51.8]}
2... d6 {[%clk 0:02:58.9]} 3. d4 {[%clk 0:02:51]} 3... exd4 {[%clk 0:03:00.8]}
4. Nxd4 {[%clk 0:02:52.9]} 4... Nf6 {[%clk 0:03:01.5]} 5. Nc3 {[%clk 0:02:53.7]}
5... Be7 {[%clk 0:03:02.5]} 6. Be2 {[%clk 0:02:54.2]} 6... O-O {[%clk
0:03:03.4]} 7. Bf4 {[%clk 0:02:55.1]} 7... Nc6 {[%clk 0:03:02.6]} 8. Qd2 {[%clk
0:02:54.2]} 8... Nxd4 {[%clk 0:02:56]} 9. Qxd4 {[%clk 0:02:56.1]} 9... Be6
{[%clk 0:02:56.4]} 10. O-O-O {[%clk 0:02:55.8]} 10... Nd7 {[%clk 0:02:51.2]} 11.
Qd2 {[%clk 0:02:53.5]} 11... Re8 {[%clk 0:02:43.6]} 12. g4 {[%clk 0:02:51.2]}
12... a6 {[%clk 0:02:32.8]} 13. g5 {[%clk 0:02:52]} 13... b5 {[%clk 0:02:32.1]}
14. h4 {[%clk 0:02:53]} 14... Ne5 {[%clk 0:02:28]} 15. Nd5 {[%clk 0:02:52.3]}
15... Bxd5 {[%clk 0:02:25.5]} 16. Qxd5 {[%clk 0:02:44.8]} 16... c6 {[%clk
0:02:23.4]} 17. Qb3 {[%clk 0:02:45.7]} 17... Qc8 {[%clk 0:02:08.1]} 18. h5
{[%clk 0:02:42.9]} 18... Qe6 {[%clk 0:02:02.5]} 19. Qxe6 {[%clk 0:02:21.3]}
19... fxe6 {[%clk 0:02:04.4]} 20. Bxe5 {[%clk 0:01:13.4]} 20... dxe5 {[%clk
0:02:06.3]} 21. g6 {[%clk 0:01:15.3]} 21... Rad8 {[%clk 0:01:59.1]} 22. Bg4
{[%clk 0:01:14.7]} 22... Bg5+ {[%clk 0:01:49.5]} 23. Kb1 {[%clk 0:01:15.6]}
23... h6 {[%clk 0:01:35]} 24. c3 {[%clk 0:01:12.4]} 24... Kf8 {[%clk 0:01:30.6]}
25. Kc2 {[%clk 0:00:43.5]} 25... Ke7 {[%clk 0:01:26.8]} 26. Be2 {[%clk 0:00:22]}
26... Rxd1 {[%clk 0:01:23.9]} 27. Rxd1 {[%clk 0:00:23.9]} 27... Rf8 {[%clk
0:01:23.8]} 28. f3 {[%clk 0:00:24.2]} 28... Rd8 {[%clk 0:01:21]} 29. Bd3 {[%clk
0:00:25.5]} 29... Rf8 {[%clk 0:01:19.1]} 30. Rf1 {[%clk 0:00:25.6]} 30... Rf4
{[%clk 0:01:17.5]} 31. a4 {[%clk 0:00:21.9]} 31... Rh4 {[%clk 0:01:06.9]} 32.
axb5 {[%clk 0:00:23]} 32... axb5 {[%clk 0:01:07.7]} 33. Ra1 {[%clk 0:00:17.3]}
33... Bf6 {[%clk 0:00:50.4]} 34. Ra7+ {[%clk 0:00:17.4]} 34... Kd6 {[%clk
0:00:47.9]} 35. Ra6 {[%clk 0:00:16.9]} 35... Kc7 {[%clk 0:00:46.2]} 36. c4
{[%clk 0:00:15.8]} 36... bxc4 {[%clk 0:00:34.3]} 37. Bxc4 {[%clk 0:00:17.7]}
37... Rxh5 {[%clk 0:00:34.2]} 38. Bxe6 {[%clk 0:00:18.2]} 38... Rh2+ {[%clk
0:00:33.5]} 39. Kc3 {[%clk 0:00:18.6]} 39... Kb7 {[%clk 0:00:33.5]} 40. Ra1
{[%clk 0:00:15.8]} 40... h5 {[%clk 0:00:33.8]} 41. Rd1 {[%clk 0:00:17]} 41... h4
{[%clk 0:00:33.5]} 42. Rd7+ {[%clk 0:00:18.5]} 42... Kb6 {[%clk 0:00:34.9]} 43.
b4 {[%clk 0:00:11.7]} 43... Rf2 {[%clk 0:00:35.4]} 44. Kc4 {[%clk 0:00:11.1]}
44... Rc2+ {[%clk 0:00:34.1]} 45. Kb3 {[%clk 0:00:11.3]} 45... Rf2 {[%clk
0:00:36]} 46. Rf7 {[%clk 0:00:12.3]} 46... Rxf3+ {[%clk 0:00:36.1]} 47. Kc4
{[%clk 0:00:12.1]} 47... h3 {[%clk 0:00:36.3]} 48. Bc8 {[%clk 0:00:11.3]} 48...
c5 {[%clk 0:00:12.2]} 49. bxc5+ {[%clk 0:00:13.2]} 49... Kc6 {[%clk 0:00:12.3]}
50. Bb7# {[%clk 0:00:14.5]} 1-0

[Event "***Titled Tuesday 3|2 Blitz"]
[Site "Chess.com"]
[Date "2017.02.07"]
[Round "1"]
[White "Entilza"]
[Black "GGuseinov"]
[Result "0-1"]
[WhiteElo "2202"]
[BlackElo "2525"]
[TimeControl "180+2"]
[EndTime "13:09:53 PST"]
[Termination "GGuseinov won by resignation"]

1. d4 {[%clk 0:02:52.6]} 1... Nf6 {[%clk 0:03:00.2]} 2. c4 {[%clk 0:02:53.2]}
2... g6 {[%clk 0:03:01.5]} 3. Nc3 {[%clk 0:02:53.8]} 3... Bg7 {[%clk 0:03:02.8]}
4. e4 {[%clk 0:02:54.7]} 4... d6 {[%clk 0:03:03.9]} 5. Nf3 {[%clk 0:02:55.3]}
5... O-O {[%clk 0:03:04.8]} 6. Be2 {[%clk 0:02:56.3]} 6... Bg4 {[%clk
0:03:05.9]} 7. O-O {[%clk 0:02:55.8]} 7... Nfd7 {[%clk 0:03:05.9]} 8. Be3 {[%clk
0:02:52.2]} 8... Nc6 {[%clk 0:03:06.7]} 9. Rc1 {[%clk 0:02:52.1]} 9... e5 {[%clk
0:03:05.3]} 10. d5 {[%clk 0:02:51.3]} 10... Bxf3 {[%clk 0:03:06.5]} 11. Bxf3
{[%clk 0:02:51.9]} 11... Nd4 {[%clk 0:03:07.7]} 12. g3 {[%clk 0:02:44.7]} 12...
Nxf3+ {[%clk 0:03:07.7]} 13. Qxf3 {[%clk 0:02:45]} 13... f5 {[%clk 0:03:09.1]}
14. b4 {[%clk 0:02:38.1]} 14... f4 {[%clk 0:03:09.6]} 15. Bd2 {[%clk 0:02:29.3]}
15... fxg3 {[%clk 0:03:08.6]} 16. Qxg3 {[%clk 0:02:29.8]} 16... Nf6 {[%clk
0:03:03.9]} 17. f4 {[%clk 0:02:07.8]} 17... Nh5 {[%clk 0:03:01.3]} 18. Qg4
{[%clk 0:02:08.2]} 18... exf4 {[%clk 0:02:45.6]} 19. Bxf4 {[%clk 0:02:05.1]}
19... Nxf4 {[%clk 0:02:31.8]} 20. Rxf4 {[%clk 0:02:05.3]} 20... Rxf4 {[%clk
0:02:33.3]} 21. Qxf4 {[%clk 0:02:05.8]} 21... Qe7 {[%clk 0:02:34.5]} 22. Nd1
{[%clk 0:01:37.9]} 22... Rf8 {[%clk 0:02:28.4]} 23. Qg4 {[%clk 0:01:38.5]} 23...
Qf6 {[%clk 0:02:15.3]} 24. Qe6+ {[%clk 0:01:25.1]} 24... Qxe6 {[%clk 0:02:11.3]}
25. dxe6 {[%clk 0:01:25.9]} 25... Re8 {[%clk 0:02:12.2]} 26. c5 {[%clk
0:01:26.8]} 26... dxc5 {[%clk 0:01:54.5]} 27. bxc5 {[%clk 0:01:27]} 27... Rxe6
{[%clk 0:01:51.2]} 28. Rc4 {[%clk 0:01:27.4]} 28... c6 {[%clk 0:01:43.8]} 29.
Kf2 {[%clk 0:01:24.2]} 29... Bf8 {[%clk 0:01:43.8]} 30. Nb2 {[%clk 0:01:20.7]}
30... Re5 {[%clk 0:01:37.1]} 31. Nd3 {[%clk 0:01:20.8]} 31... Rh5 {[%clk
0:01:37.1]} 32. Kg3 {[%clk 0:01:14]} 32... a5 {[%clk 0:01:37.4]} 33. e5 {[%clk
0:01:12.5]} 33... Kf7 {[%clk 0:01:34.9]} 34. Ra4 {[%clk 0:01:11.8]} 34... Bg7
{[%clk 0:01:32.4]} 35. Rxa5 {[%clk 0:00:56.8]} 35... Bxe5+ {[%clk 0:01:31.5]}
36. Nxe5+ {[%clk 0:00:57.4]} 36... Rxe5 {[%clk 0:01:33.1]} 37. Ra7 {[%clk
0:00:47.5]} 37... Re7 {[%clk 0:01:29.3]} 38. Kf4 {[%clk 0:00:48.1]} 38... Kf6
{[%clk 0:01:28.7]} 39. h4 {[%clk 0:00:46.9]} 39... h6 {[%clk 0:01:29.5]} 40. a4
{[%clk 0:00:47.2]} 40... Ke6 {[%clk 0:01:28.4]} 41. a5 {[%clk 0:00:42.7]} 41...
Rd7 {[%clk 0:01:29.1]} 42. Ke4 {[%clk 0:00:40.1]} 42... g5 {[%clk 0:01:29.5]}
43. hxg5 {[%clk 0:00:40]} 43... hxg5 {[%clk 0:01:31.1]} 44. a6 {[%clk
0:00:40.5]} 44... bxa6 {[%clk 0:01:28.2]} 45. Rxa6 {[%clk 0:00:41.3]} 45... Rc7
{[%clk 0:01:29.8]} 46. Ra8 {[%clk 0:00:41.8]} 46... Rg7 {[%clk 0:01:29.2]} 47.
Rd8 {[%clk 0:00:40.5]} 47... Rg6 {[%clk 0:01:06.3]} 48. Rd6+ {[%clk 0:00:28.9]}
48... Kf7 {[%clk 0:01:07.3]} 49. Rd7+ {[%clk 0:00:29.4]} 49... Ke8 {[%clk
0:00:55.8]} 50. Rd3 {[%clk 0:00:27.5]} 50... g4 {[%clk 0:00:43.5]} 51. Kf5
{[%clk 0:00:26.1]} 51... Rg8 {[%clk 0:00:40.8]} 52. Rg3 {[%clk 0:00:25.8]} 52...
Ke7 {[%clk 0:00:38.9]} 53. Kf4 {[%clk 0:00:17.9]} 53... Kf6 {[%clk 0:00:35.1]}
54. Rd3 {[%clk 0:00:18.2]} 54... g3 {[%clk 0:00:34.2]} 0-1

[Event "***Titled Tuesday 3|2 Blitz"]
[Site "Chess.com"]
[Date "2017.02.07"]
[Round "1"]
[White "rubhani"]
[Black "BartoszSocko"]
[Result "0-1"]
[WhiteElo "2371"]
[BlackElo "2681"]
[TimeControl "180+2"]
[EndTime "13:09:56 PST"]
[Termination "BartoszSocko won by resignation"]

1. e4 {[%clk 0:03:02]} 1... e6 {[%clk 0:03:01.2]} 2. d4 {[%clk 0:03:02.5]} 2...
d5 {[%clk 0:03:02.4]} 3. Nd2 {[%clk 0:03:02.5]} 3... Nf6 {[%clk 0:03:02.9]} 4.
e5 {[%clk 0:03:03.2]} 4... Nfd7 {[%clk 0:03:04.1]} 5. Bd3 {[%clk 0:03:03.9]}
5... c5 {[%clk 0:03:05.3]} 6. c3 {[%clk 0:03:05]} 6... b6 {[%clk 0:03:06.8]} 7.
Ngf3 {[%clk 0:02:59.6]} 7... Ba6 {[%clk 0:03:06.7]} 8. Bxa6 {[%clk 0:03:00.7]}
8... Nxa6 {[%clk 0:03:08.6]} 9. O-O {[%clk 0:03:02.3]} 9... Nc7 {[%clk
0:03:09.4]} 10. Re1 {[%clk 0:03:02.7]} 10... Be7 {[%clk 0:03:10.4]} 11. Nf1
{[%clk 0:03:03.9]} 11... O-O {[%clk 0:03:11.4]} 12. Ng3 {[%clk 0:03:05.2]} 12...
cxd4 {[%clk 0:02:58.1]} 13. Nxd4 {[%clk 0:03:01.6]} 13... Nc5 {[%clk 0:02:54.3]}
14. b4 {[%clk 0:02:39]} 14... Nd7 {[%clk 0:02:54.4]} 15. a4 {[%clk 0:02:38.7]}
15... Qe8 {[%clk 0:02:49.9]} 16. Bd2 {[%clk 0:02:37.3]} 16... a5 {[%clk
0:02:44.7]} 17. Qg4 {[%clk 0:02:36.1]} 17... axb4 {[%clk 0:02:18.1]} 18. cxb4
{[%clk 0:02:36.4]} 18... Na6 {[%clk 0:02:12.2]} 19. Nc6 {[%clk 0:02:35.8]} 19...
Rc8 {[%clk 0:01:52.5]} 20. b5 {[%clk 0:02:14.6]} 20... Nac5 {[%clk 0:01:52.2]}
21. Nh5 {[%clk 0:02:13.7]} 21... g6 {[%clk 0:01:52]} 22. Nxe7+ {[%clk
0:01:52.9]} 22... Qxe7 {[%clk 0:01:52.6]} 23. Bg5 {[%clk 0:01:54.5]} 23... f6
{[%clk 0:01:36.7]} 24. Nxf6+ {[%clk 0:01:47.3]} 24... Nxf6 {[%clk 0:01:32.5]}
25. Bxf6 {[%clk 0:01:48.6]} 25... Qf7 {[%clk 0:01:33.6]} 26. h4 {[%clk
0:01:43.8]} 26... Ne4 {[%clk 0:01:26.6]} 27. f3 {[%clk 0:01:41.1]} 27... Nxf6
{[%clk 0:01:22.3]} 28. exf6 {[%clk 0:01:41.9]} 28... Rce8 {[%clk 0:01:21.7]} 29.
Qd4 {[%clk 0:01:37.1]} 29... Qxf6 {[%clk 0:01:21.5]} 30. Qxb6 {[%clk 0:01:38.2]}
30... Qxh4 {[%clk 0:01:16.3]} 31. Rxe6 {[%clk 0:01:34.8]} 31... Rxe6 {[%clk
0:01:13.1]} 32. Qxe6+ {[%clk 0:01:35.7]} 32... Kg7 {[%clk 0:01:10.6]} 33. Qxd5
{[%clk 0:01:35.3]} 33... Rf5 {[%clk 0:01:01.5]} 34. Qd7+ {[%clk 0:01:33.3]}
34... Kh6 {[%clk 0:00:59.5]} 35. Qd2+ {[%clk 0:01:24.3]} 35... Kg7 {[%clk
0:00:56.9]} 36. Re1 {[%clk 0:01:21.6]} 36... Rh5 {[%clk 0:00:52.2]} 37. Qd7+
{[%clk 0:01:01.5]} 37... Kh6 {[%clk 0:00:52.6]} 38. Re7 {[%clk 0:00:57.6]} 38...
Qh2+ {[%clk 0:00:40.5]} 39. Kf1 {[%clk 0:00:55.7]} 39... Qh1+ {[%clk 0:00:41.5]}
40. Kf2 {[%clk 0:00:56.1]} 40... Qh4+ {[%clk 0:00:42.6]} 41. Ke2 {[%clk
0:00:45.6]} 41... Qc4+ {[%clk 0:00:43.1]} 42. Qd3 {[%clk 0:00:46.5]} 42... Qxa4
{[%clk 0:00:32]} 43. Qe3+ {[%clk 0:00:47.5]} 43... Rg5 {[%clk 0:00:31.8]} 44.
Re5 {[%clk 0:00:48.4]} 44... Qc4+ {[%clk 0:00:21.1]} 45. Kf2 {[%clk 0:00:47]}
45... Qc2+ {[%clk 0:00:15]} 46. Ke1 {[%clk 0:00:46.7]} 46... Qb1+ {[%clk
0:00:14.9]} 47. Kf2 {[%clk 0:00:18.2]} 47... Qb2+ {[%clk 0:00:16.1]} 48. Qe2
{[%clk 0:00:18.7]} 48... Qxe5 {[%clk 0:00:16.8]} 49. Qd2 {[%clk 0:00:19.5]}
49... Qxb5 {[%clk 0:00:15.9]} 50. f4 {[%clk 0:00:20.7]} 50... Qc5+ {[%clk
0:00:14.6]} 51. Kf3 {[%clk 0:00:21.7]} 51... Qd5+ {[%clk 0:00:15]} 0-1